{"text_format":"1","workbook":"xlsx","n_sheets":9,"sheets":["申請方法","様式１","様式２（購入予定図書一覧）","様式３（チェックシート）","様式４（贈呈希望日時）","様式５(受領書）","様式６(成果報告書","様式７(購入図書一覧）","様式８（領収書原本綴）"],"not_rendered":{"charts":0,"images":0,"macros":0,"external_links":0,"defined_names":4,"comments":2,"pivot_tables":0},"unopened":[],"bounds":{"document_bytes":16777216,"sheet_cells":100000,"rows_first":2000,"rows_last":500,"rows_between":2000,"halvings":0,"cell_chars":16384,"cell_head_chars":4096},"cells_cut":0,"cells_raw":0,"read":"whole","date_system":"1900"}

{"sheet":"申請方法","index":0,"n_rows":22,"n_cols":1,"rows_kept":22,"cut":false,"hidden":false,"merged":[[21,0,28,8],[0,0,0,8],[1,0,1,8],[3,0,6,8],[9,0,12,8],[15,0,18,8]]}
["様式1(申請書）"]
["2022年度　「奈良教弘文庫助成」　申請書"]
[]
["①入力フォームでＷｅｂ申請\n（様式２はe-mailで送信）"]
[]
[]
[]
["　"]
[]
["②両面印刷"]
[]
[]
[]
[]
[]
["③公印を押印"]
[]
[]
[]
[]
[]
["　④紙媒体を郵送　\n　　　　様式１(申請書）\n　　　　様式２（購入予定図書一覧）\n　 　 　様式３(チェックシート）"]

{"sheet":"様式１","index":1,"n_rows":40,"n_cols":2,"rows_kept":40,"cut":false,"hidden":false,"merged":[[0,0,0,1],[8,0,8,1],[10,0,10,1]]}
["日教弘奈良支部　奈良教弘文庫助成　申請書"]
[]
["公益財団法人　日本教育公務員奈良支部"]
["　　　　　　　支　部　長　　様"]
[null,"学校名"]
[null,"校長名"]
[]
[]
["貴支部の奈良教弘文庫助成について、下記のとおり申請いたします。"]
[]
["記"]
[]
["受付No","※奈良教弘記入"]
["年度","2022年度"]
["研究活動名(２０文字以内）"]
["申請金額","50,000円"]
["申請日"]
["所属コード"]
["学校園名ふりがな"]
["学校園名"]
["校園長氏名ふりがな"]
["校園長氏名"]
["校園長職名"]
["申請日"]
["郵便番号"]
["住所"]
["電話番号"]
["ＦＡＸ"]
["メールアドレス"]
["園児・児童・生徒数"]
["教職員数"]
["学級数"]
["担当者職名"]
["担当者氏名"]
["担当者メールアドレス"]
["活動の目的\n（２００文字〜４００文字）"]
["研究活動の目的を設定した\n背景（課題）\n（２００文字〜４００文字）"]
["期間"]
["活動内容\n（４００文字〜６００文字）"]
["2022年度学校教育研究活動助成\n　　※〇をつけてください。","・　助成を受けた（50,000円）\n・　助成を受けた（100,000円）　　　　　\n・　受けていない\n・　申請していない"]

{"sheet":"様式２（購入予定図書一覧）","index":2,"n_rows":107,"n_cols":11,"rows_kept":107,"cut":false,"hidden":false,"merged":[[1,0,1,5],[3,4,4,5],[0,3,0,5],[2,0,2,2],[4,0,4,2],[3,0,3,2]]}
[null,null,null,"様式2（購入予定図書名）"]
["購入予定図書一覧"]
["学校園番号",null,null,null,"購入冊数",{"$f":"COUNT(E8:E107)","v":0}]
["学校園名",null,null,null,"助成校園には、「助成金」と「文庫シール」を同時にお届けします。",null,null,"区分"]
["校園長氏名",null,null,null,null,null,null,0,"総記",5,"技術"]
[null,null,null,"※購入図書名は、1行に1冊で入力してください。行数で購入冊数をカウントします。",null,null,null,2,"歴史・地理・伝記",7,"芸術"]
["冊数","購入予定日","区分","購入図書名※","金額","差引残額",null,3,"社会科学",8,"言語"]
[1,null,null,null,null,{"$f":"50000-E8","v":50000},null,4,"自然科学",9,"文学"]
[2,null,null,null,null,{"$f":"+F8-E9","v":50000},null,"「０総記」には１～９のどこにも分けられないものが入ります。"]
[3,null,null,null,null,{"$f":"+F9-E10","v":50000}]
[4,null,null,null,null,50000]
[5,null,null,null,null,50000]
[6,null,null,null,null,50000]
[7,null,null,null,null,50000]
[8,null,null,null,null,50000]
[9,null,null,null,null,50000]
[10,null,null,null,null,50000]
[11,null,null,null,null,50000]
[12,null,null,null,null,50000]
[13,null,null,null,null,50000]
[14,null,null,null,null,50000]
[15,null,null,null,null,50000]
[16,null,null,null,null,50000]
[17,null,null,null,null,50000]
[18,null,null,null,null,50000]
[19,null,null,null,null,50000]
[20,null,null,null,null,50000]
[21,null,null,null,null,50000]
[22,null,null,null,null,50000]
[23,null,null,null,null,50000]
[24,null,null,null,null,50000]
[25,null,null,null,null,50000]
[26,null,null,null,null,50000]
[27,null,null,null,null,50000]
[28,null,null,null,null,50000]
[29,null,null,null,null,50000]
[30,null,null,null,null,50000]
[31,null,null,null,null,50000]
[32,null,null,null,null,50000]
[33,null,null,null,null,50000]
[34,null,null,null,null,50000]
[35,null,null,null,null,50000]
[36,null,null,null,null,50000]
[37,null,null,null,null,50000]
[38,null,null,null,null,50000]
[39,null,null,null,null,50000]
[40,null,null,null,null,50000]
[41,null,null,null,null,50000]
[42,null,null,null,null,50000]
[43,null,null,null,null,50000]
[44,null,null,null,null,50000]
[45,null,null,null,null,50000]
[46,null,null,null,null,50000]
[47,null,null,null,null,50000]
[48,null,null,null,null,50000]
[49,null,null,null,null,50000]
[50,null,null,null,null,50000]
[51,null,null,null,null,50000]
[52,null,null,null,null,50000]
[53,null,null,null,null,50000]
[54,null,null,null,null,50000]
[55,null,null,null,null,50000]
[56,null,null,null,null,50000]
[57,null,null,null,null,50000]
[58,null,null,null,null,50000]
[59,null,null,null,null,50000]
[60,null,null,null,null,50000]
[61,null,null,null,null,50000]
[62,null,null,null,null,50000]
[63,null,null,null,null,50000]
[64,null,null,null,null,50000]
[65,null,null,null,null,50000]
[66,null,null,null,null,50000]
[67,null,null,null,null,{"$f":"+F73-E74","v":50000}]
[68,null,null,null,null,50000]
[69,null,null,null,null,50000]
[70,null,null,null,null,50000]
[71,null,null,null,null,50000]
[72,null,null,null,null,50000]
[73,null,null,null,null,50000]
[74,null,null,null,null,50000]
[75,null,null,null,null,50000]
[76,null,null,null,null,50000]
[77,null,null,null,null,50000]
[78,null,null,null,null,50000]
[79,null,null,null,null,50000]
[80,null,null,null,null,50000]
[81,null,null,null,null,50000]
[82,null,null,null,null,50000]
[83,null,null,null,null,50000]
[84,null,null,null,null,50000]
[85,null,null,null,null,50000]
[86,null,null,null,null,50000]
[87,null,null,null,null,50000]
[88,null,null,null,null,50000]
[89,null,null,null,null,50000]
[90,null,null,null,null,50000]
[91,null,null,null,null,50000]
[92,null,null,null,null,50000]
[93,null,null,null,null,50000]
[94,null,null,null,null,50000]
[95,null,null,null,null,50000]
[96,null,null,null,null,50000]
[97,null,null,null,null,50000]
[98,null,null,null,null,50000]
[99,null,null,null,null,50000]
[100,null,null,null,null,50000]

{"sheet":"様式３（チェックシート）","index":3,"n_rows":25,"n_cols":4,"rows_kept":25,"cut":false,"hidden":false,"merged":[[23,0,23,1],[24,0,24,1],[9,0,9,2],[10,0,13,0],[14,0,16,0],[17,0,18,0],[21,0,21,2],[22,0,22,1],[0,0,0,3],[2,0,2,3],[3,0,3,3],[5,0,5,1],[5,3,7,3],[6,0,6,1],[7,0,7,1],[1,0,1,3]]}
["様式３(チェックシート）"]
["申請内容チェックシート"]
["(2022年度 奈良教弘文庫助成事業）"]
["　下記チェックシートの項目について確認し、〇印を付して、2022年6月30日(木）までに申請書類一式としてと奈良教弘に提出してください。\n　全項目のチェック欄に〇印がない場合は、申請書を受理できません。"]
[]
["学校園番号",null,null,"公印"]
["学校園名"]
["校園長氏名"]
[]
["確認項目等",null,null,"確認欄"]
["申請",1,"当校は、奈良教弘の趣旨(目的と事業）に賛同します。"]
[null,2,"様式１（申請書）の活動名は、20字以内となっています。"]
[null,3,"様式１（申請書）をＷｅｂ申請し、様式２（購入予定図書一覧）をe-mailで送っています。"]
[null,4,"様式1（申請書）・様式２（購入予定図書一覧）・様式３（チェックシート）の紙媒体を、6/1〜6/30必着で奈良教弘に郵送します。"]
["贈呈\n説明",5,"助成決定後、奈良教弘に様式4（贈呈希望日時）をe-mailで送ります。"]
[null,6,"贈呈式・事業説明会は、全教職員が一堂に会する場で行います。"]
[null,7,"贈呈時に様式5（受領書）を奈良教弘に提出します。"]
["執行",8,"助成金の使途は、子どもたちの読書活動に係る費用とします。"]
[null,9,"購入図書には文庫シールを貼ります。"]
["報告",10,"2022年11月30日までに、遅滞なく、次の電子媒体と紙媒体を送ります。\n\n①電子媒体：様式６（成果報告書）・様式７（購入図書一覧）と購入図書\n　　　　　　と活動の様子が分かる写真データ（jpeg）をe-mailで送り\n　　　　　　ます。\n②紙媒体　：様式６（成果報告書）・様式７(会計報告）・様式８(領収書\n　　　　　　原本綴）を郵送します。"]
[null,"　"]
["奈良教弘文庫担当者"]
["職名"]
["氏名"]
["e-mailアドレス"]

{"sheet":"様式４（贈呈希望日時）","index":4,"n_rows":19,"n_cols":8,"rows_kept":19,"cut":false,"hidden":false,"merged":[[18,7,18,8],[8,1,9,1],[10,1,10,2],[10,6,10,7],[11,1,13,1],[11,6,13,6],[17,6,17,7],[6,1,7,1],[0,1,0,3],[0,6,0,8],[3,1,3,2],[3,6,3,7],[4,1,5,1]]}
[null,"様式４　（贈呈希望日時）",null,null,null,null,"様式４　（贈呈希望日時）"]
[]
[null,"入力例",null,null,null,null,"贈呈日の希望日時"]
[null,"学校園名",null,"奈良市立奈良教弘小学校",null,null,"学校園名"]
[null,"第１希望","月日","8月1日（月）",null,null,"第１希望","月日"]
[null,null,"時刻","１４時",null,null,null,"時刻"]
[null,"第２希望","月日","8月２０日（土）",null,null,"第２希望","月日"]
[null,null,"時刻","１５時",null,null,null,"時刻"]
[null,"第３希望","月日","９月１日（木）",null,null,"第３希望","月日"]
[null,null,"時刻","１３時３０分",null,null,null,"時刻"]
[null,"会　　　場",null,"視聴覚室",null,null,"会　　　場"]
[null,"実　務\n担当者","職名",null,null,null,"実　務\n担当者","職名"]
[null,null,"氏名",null,null,null,null,"氏名"]
[null,null,"e-mail\nアドレス","nara@axel.ocn.ne.jp",null,null,null,"e-mail\nアドレス"]
[]
[null,"※　必ず第３希望まで記入ください。",null,null,null,null,"※　必ず第３希望まで記入ください。"]
[]
[null,null,null,null,null,null,"送信先アドレス"]
[null,null,null,null,null,null,null,"kyouikushinkou@narakyoko.com"]

{"sheet":"様式５(受領書）","index":5,"n_rows":17,"n_cols":5,"rows_kept":17,"cut":false,"hidden":false,"merged":[[16,0,16,4],[0,0,0,4],[1,0,1,4],[2,0,2,4],[4,3,4,4],[6,0,6,4],[7,0,7,4]]}
["様式５（受領書）"]
[]
["受　領　書"]
[]
[null,null,null,"年　　月　　日"]
[]
["公益財団法人　日本教育公務員弘済会奈良支部"]
["　　　　　　　　　支部長　　様"]
[]
[null,null,"学校園番号"]
[null,null,"校園名"]
[null,null,"校園長名"]
[]
[]
[null,"　","金",50000,"円也"]
[]
["ただし、２０２２年度「奈良教弘文庫助成金」として"]

{"sheet":"様式６(成果報告書","index":6,"n_rows":17,"n_cols":5,"rows_kept":17,"cut":false,"hidden":false,"merged":[[12,0,12,4],[13,0,14,4],[15,0,15,4],[16,0,16,4],[3,0,3,4],[11,0,11,1],[11,2,11,4],[2,0,2,4],[0,3,0,4],[1,0,1,4],[6,4,8,4],[10,0,10,1],[10,2,10,4]]}
["助成番号",null,null,"様式６(成果報告書）"]
["年　　月　　日"]
["2022年度　奈良教弘文庫助成金　成果報告書"]
[]
["公益財団法人　日本教育公務員弘済会奈良支部支部　支部長　様"]
[]
[null,null,"学校園番号","　","公印"]
[null,null,"学校園名","　"]
[null,null,"校園長氏名","　"]
[]
["１　活動名\n　　(20字以内）"]
["２　活動期間"]
["３　概要（活動の様子や今後の展望を、写真等を活用して600字～800字にまとめてください。）"]
[]
[]
["※下記の経費は、助成対象となりません。\n　　①園児・児童・生徒の読書活動を目的としないもの\n　　②教職員用の図書を購入する費用"]
["※助成校園は、成果報告書を11月30日(水）までに電子媒体(メール）と紙媒体(郵送）で提出してください。なお、提出された成果報告書・写真は当支部が公表できるものとします。"]

{"sheet":"様式７(購入図書一覧）","index":7,"n_rows":107,"n_cols":12,"rows_kept":107,"cut":false,"hidden":false,"merged":[[5,0,5,5],[2,4,4,4],[2,5,4,5],[0,0,1,3],[0,4,0,6],[2,0,2,2],[3,0,3,2],[4,0,4,2]]}
["購入図書名一覧",null,null,null,"様式7（購入図書内容）"]
[]
["学校園名",null,null,null,"購入冊数",{"$f":"COUNT(E8:E107)","v":0},null,null,"区分"]
["職名・校園長名",null,null,null,null,null,null,null,0,"総記",5,"技術"]
["報告書日付",null,null,null,null,null,null,null,1,"哲学・宗教",6,"産業"]
["※購入図書名は、1行に1冊で入力してください。行数で購入冊数をカウントします。",null,null,null,null,null,null,null,2,"歴史・地理・伝記",7,"芸術"]
["冊数","支出年月日","区分","購入図書名※","金額","差引残額","領収書No.",null,3,"社会科学",8,"言語"]
[1,null,null,null,null,{"$f":"50000-E8","v":50000},null,null,4,"自然科学",9,"文学"]
[2,null,null,null,null,{"$f":"+F8-E9","v":50000},null,null,"「０総記」には１～９のどこにも分けられないものが入ります。"]
[3,null,null,null,null,{"$f":"+F9-E10","v":50000}]
[4,null,null,null,null,50000]
[5,null,null,null,null,50000]
[6,null,null,null,null,50000]
[7,null,null,null,null,50000]
[8,null,null,null,null,50000]
[9,null,null,null,null,50000]
[10,null,null,null,null,50000]
[11,null,null,null,null,50000]
[12,null,null,null,null,50000]
[13,null,null,null,null,50000]
[14,null,null,null,null,50000]
[15,null,null,null,null,50000]
[16,null,null,null,null,50000]
[17,null,null,null,null,50000]
[18,null,null,null,null,50000]
[19,null,null,null,null,50000]
[20,null,null,null,null,50000]
[21,null,null,null,null,50000]
[22,null,null,null,null,50000]
[23,null,null,null,null,50000]
[24,null,null,null,null,50000]
[25,null,null,null,null,50000]
[26,null,null,null,null,50000]
[27,null,null,null,null,50000]
[28,null,null,null,null,50000]
[29,null,null,null,null,50000]
[30,null,null,null,null,50000]
[31,null,null,null,null,50000]
[32,null,null,null,null,50000]
[33,null,null,null,null,50000]
[34,null,null,null,null,50000]
[35,null,null,null,null,50000]
[36,null,null,null,null,50000]
[37,null,null,null,null,50000]
[38,null,null,null,null,50000]
[39,null,null,null,null,50000]
[40,null,null,null,null,50000]
[41,null,null,null,null,50000]
[42,null,null,null,null,50000]
[43,null,null,null,null,50000]
[44,null,null,null,null,50000]
[45,null,null,null,null,50000]
[46,null,null,null,null,50000]
[47,null,null,null,null,50000]
[48,null,null,null,null,50000]
[49,null,null,null,null,50000]
[50,null,null,null,null,50000]
[51,null,null,null,null,50000]
[52,null,null,null,null,50000]
[53,null,null,null,null,50000]
[54,null,null,null,null,50000]
[55,null,null,null,null,50000]
[56,null,null,null,null,50000]
[57,null,null,null,null,50000]
[58,null,null,null,null,50000]
[59,null,null,null,null,50000]
[60,null,null,null,null,50000]
[61,null,null,null,null,50000]
[62,null,null,null,null,50000]
[63,null,null,null,null,50000]
[64,null,null,null,null,50000]
[65,null,null,null,null,50000]
[66,null,null,null,null,50000]
[67,null,null,null,null,{"$f":"+F73-E74","v":50000}]
[68,null,null,null,null,50000]
[69,null,null,null,null,50000]
[70,null,null,null,null,50000]
[71,null,null,null,null,50000]
[72,null,null,null,null,50000]
[73,null,null,null,null,50000]
[74,null,null,null,null,50000]
[75,null,null,null,null,50000]
[76,null,null,null,null,50000]
[77,null,null,null,null,50000]
[78,null,null,null,null,50000]
[79,null,null,null,null,50000]
[80,null,null,null,null,50000]
[81,null,null,null,null,50000]
[82,null,null,null,null,50000]
[83,null,null,null,null,50000]
[84,null,null,null,null,50000]
[85,null,null,null,null,50000]
[86,null,null,null,null,50000]
[87,null,null,null,null,50000]
[88,null,null,null,null,50000]
[89,null,null,null,null,50000]
[90,null,null,null,null,50000]
[91,null,null,null,null,50000]
[92,null,null,null,null,50000]
[93,null,null,null,null,50000]
[94,null,null,null,null,50000]
[95,null,null,null,null,50000]
[96,null,null,null,null,50000]
[97,null,null,null,null,50000]
[98,null,null,null,null,50000]
[99,null,null,null,null,50000]
[100,null,null,null,null,50000]

{"sheet":"様式８（領収書原本綴）","index":8,"n_rows":38,"n_cols":4,"rows_kept":38,"cut":false,"hidden":false,"merged":[[3,1,34,1]]}
[null,null,null,"様式８（領収書原本綴）"]
["　"]
[]
[null,"領収書添付欄"]
[]
[]
[]
[]
[]
[]
[]
[]
[]
[]
[]
[]
[]
[]
[]
[]
[]
[]
[]
[]
[]
[]
[]
[]
[]
[]
[]
[]
[]
[]
[]
[]
["※領収書の①日付、②学校・園の名称、③金額、④但し書き、⑤住所、氏名、認印を"]
["ご確認ください。必要に応じて、コピーしてご使用ください。"]